[Event "Titled Tuesday Blitz February 14 Early 2023"]
[White "Zaichenko, Daria"]
[Black "Ladan, Nicholas"]
[WhiteFideId "4197453"]
[BlackFideId "30918855"]
[WhiteElo "2104"]
[BlackElo "2228"]
[Result "0-1"]
[Round "02"]
[TimeControl "180+2"]
[Date "2023.02.15"]
[WhiteClock "0:00:02"]
[BlackClock "0:00:16"]

1. e4 {[%clk 0:02:57]}  e5 {[%clk 0:03:00]} 2. Nf3 {[%clk 0:02:56]}  Nc6 {[%clk 0:03:00]} 3. Bc4 {[%clk 0:02:56]}  Nf6 {[%clk 0:03:00]} 4. d3 {[%clk 0:02:55]}  h6 {[%clk 0:02:59]} 5. c3 {[%clk 0:02:54]}  d6 {[%clk 0:02:59]} 6. Nbd2 {[%clk 0:02:49]}  g6 {[%clk 0:02:59]} 7. O-O {[%clk 0:02:37]}  Bg7 {[%clk 0:03:00]} 8. Re1 {[%clk 0:02:34]}  O-O {[%clk 0:02:59]} 9. Bb3 {[%clk 0:02:33]}  a5 {[%clk 0:02:58]} 10. a4 {[%clk 0:02:32]}  b6 {[%clk 0:02:58]} 11. Nf1 {[%clk 0:02:32]}  Bb7 {[%clk 0:02:58]} 12. Ng3 {[%clk 0:02:32]}  Qd7 {[%clk 0:02:58]} 13. d4 {[%clk 0:02:29]}  Rfe8 {[%clk 0:02:55]} 14. dxe5 {[%clk 0:02:24]}  dxe5 {[%clk 0:02:52]} 15. Qe2 {[%clk 0:02:20]}  Rad8 {[%clk 0:02:49]} 16. Be3 {[%clk 0:02:17]}  Qe7 {[%clk 0:02:39]} 17. Nh4 {[%clk 0:02:10]}  Kh7 {[%clk 0:02:26]} 18. Ngf5 {[%clk 0:02:02]}  gxf5 {[%clk 0:02:25]} 19. Nxf5 {[%clk 0:02:01]}  Qf8 {[%clk 0:02:25]} 20. Qf3 {[%clk 0:01:58]}  Ng8 {[%clk 0:02:21]} 21. Qh5 {[%clk 0:01:54]}  Bc8 {[%clk 0:02:02]} 22. Bxf7 {[%clk 0:01:36]}  Bxf5 {[%clk 0:01:35]} 23. Bxe8 {[%clk 0:01:19]}  Qxe8 {[%clk 0:01:31]} 24. Qxf5+ {[%clk 0:01:15]}  Qg6 {[%clk 0:01:31]} 25. Qxg6+ {[%clk 0:01:13]}  Kxg6 {[%clk 0:01:32]} 26. Rad1 {[%clk 0:01:13]}  Rc8 {[%clk 0:01:16]} 27. f4 {[%clk 0:01:07]}  Nf6 {[%clk 0:01:13]} 28. fxe5 {[%clk 0:01:01]}  Nxe5 {[%clk 0:01:14]} 29. Bf4 {[%clk 0:01:01]}  Nfd7 {[%clk 0:01:02]} 30. Re3 {[%clk 0:00:55]}  Re8 {[%clk 0:00:54]} 31. Rd5 {[%clk 0:00:48]}  Kh7 {[%clk 0:00:51]} 32. h3 {[%clk 0:00:39]}  Re6 {[%clk 0:00:51]} 33. b3 {[%clk 0:00:31]}  Bf8 {[%clk 0:00:46]} 34. Re2 {[%clk 0:00:19]}  Bc5+ {[%clk 0:00:35]} 35. Kh2 {[%clk 0:00:19]}  Bd6 {[%clk 0:00:36]} 36. g3 {[%clk 0:00:14]}  Nf6 {[%clk 0:00:28]} 37. Rd1 {[%clk 0:00:12]}  Kg6 {[%clk 0:00:24]} 38. Kg2 {[%clk 0:00:11]}  h5 {[%clk 0:00:23]} 39. Rf1 {[%clk 0:00:09]}  Nf7 {[%clk 0:00:19]} 40. Bxd6 {[%clk 0:00:09]}  Nxd6 {[%clk 0:00:18]} 41. e5 {[%clk 0:00:08]}  Nd7 {[%clk 0:00:18]} 42. Rfe1 {[%clk 0:00:04]}  Nf7 {[%clk 0:00:16]} 43. Re4 {[%clk 0:00:03]}  Ndxe5 {[%clk 0:00:16]} 44. R1e3 {[%clk 0:00:02]}  Kf6 {[%clk 0:00:16]} 45. g4 {[%clk 0:00:01]}  hxg4 {[%clk 0:00:16]} 46. hxg4 {[%clk 0:00:02]}  Rd6 {[%clk 0:00:16]} 0-1


[Site "https://www.chess.com"]

[Event "Titled Tuesday Blitz February 14 Early 2023"]
[White "Antonio, Jorge Carlos"]
[Black "Cruz Lledo, Pablo"]
[WhiteFideId "113190"]
[BlackFideId "2297361"]
[WhiteElo "2277"]
[BlackElo "2373"]
[Result "0-1"]
[Round "02"]
[TimeControl "180+2"]
[Date "2023.02.15"]
[WhiteClock "0:02:17"]
[BlackClock "0:01:35"]

1. d4 {[%clk 0:03:00]}  Nf6 {[%clk 0:02:57]} 2. Nf3 {[%clk 0:03:00]}  g6 {[%clk 0:02:49]} 3. c4 {[%clk 0:03:00]}  Bg7 {[%clk 0:02:45]} 4. Nc3 {[%clk 0:02:59]}  d5 {[%clk 0:02:44]} 5. Bg5 {[%clk 0:02:59]}  Ne4 {[%clk 0:02:30]} 6. Bh4 {[%clk 0:02:58]}  Nxc3 {[%clk 0:02:25]} 7. bxc3 {[%clk 0:02:58]}  c6 {[%clk 0:02:23]} 8. e3 {[%clk 0:02:58]}  O-O {[%clk 0:02:22]} 9. cxd5 {[%clk 0:02:57]}  cxd5 {[%clk 0:02:22]} 10. Be2 {[%clk 0:02:56]}  b6 {[%clk 0:02:20]} 11. O-O {[%clk 0:02:56]}  Bb7 {[%clk 0:02:20]} 12. Qb3 {[%clk 0:02:53]}  Nc6 {[%clk 0:02:20]} 13. Rfc1 {[%clk 0:02:46]}  Rc8 {[%clk 0:02:20]} 14. c4 {[%clk 0:02:46]}  Na5 {[%clk 0:02:17]} 15. Qb4 {[%clk 0:02:45]}  Re8 {[%clk 0:02:08]} 16. cxd5 {[%clk 0:02:44]}  Qxd5 {[%clk 0:02:08]} 17. Bxe7 {[%clk 0:02:38]}  Nc6 {[%clk 0:02:07]} 18. Rxc6 {[%clk 0:02:37]}  Bxc6 {[%clk 0:01:56]} 19. Bh4 {[%clk 0:02:35]}  Bf8 {[%clk 0:01:51]} 20. Qb2 {[%clk 0:02:29]}  Ba4 {[%clk 0:01:47]} 21. Bd3 {[%clk 0:02:23]}  Qc6 {[%clk 0:01:38]} 22. Ne5 {[%clk 0:02:19]}  Qc3 {[%clk 0:01:38]} 23. Qe2 {[%clk 0:02:17]}  Qxa1+ {[%clk 0:01:35]} 0-1


[Site "https://www.chess.com"]

[Event "Titled Tuesday Blitz February 14 Early 2023"]
[White "Ansh M Shah"]
[Black "Baskakov, Egor"]
[WhiteFideId "25033379"]
[BlackFideId "24197866"]
[WhiteElo "2171"]
[BlackElo "2215"]
[Result "0-1"]
[Round "02"]
[TimeControl "180+2"]
[Date "2023.02.15"]
[WhiteClock "0:00:15"]
[BlackClock "0:01:16"]

1. d4 {[%clk 0:03:00]}  Nf6 {[%clk 0:02:59]} 2. c4 {[%clk 0:03:01]}  e6 {[%clk 0:02:59]} 3. g3 {[%clk 0:02:46]}  d5 {[%clk 0:03:00]} 4. Bg2 {[%clk 0:02:47]}  Be7 {[%clk 0:03:00]} 5. Nf3 {[%clk 0:02:47]}  O-O {[%clk 0:03:01]} 6. O-O {[%clk 0:02:47]}  Ne4 {[%clk 0:03:01]} 7. Nbd2 {[%clk 0:02:46]}  f5 {[%clk 0:03:01]} 8. Ne5 {[%clk 0:02:44]}  c6 {[%clk 0:02:59]} 9. f3 {[%clk 0:02:42]}  Nxd2 {[%clk 0:02:59]} 10. Bxd2 {[%clk 0:02:42]}  Nd7 {[%clk 0:02:58]} 11. Bf4 {[%clk 0:02:30]}  g5 {[%clk 0:02:57]} 12. Nxd7 {[%clk 0:02:30]}  Bxd7 {[%clk 0:02:58]} 13. Be5 {[%clk 0:02:31]}  Bf6 {[%clk 0:02:54]} 14. Bxf6 {[%clk 0:02:31]}  Qxf6 {[%clk 0:02:55]} 15. e3 {[%clk 0:02:30]}  dxc4 {[%clk 0:02:53]} 16. a4 {[%clk 0:02:26]}  a5 {[%clk 0:02:47]} 17. f4 {[%clk 0:02:26]}  Rab8 {[%clk 0:02:44]} 18. Qc2 {[%clk 0:02:16]}  b5 {[%clk 0:02:40]} 19. axb5 {[%clk 0:02:16]}  cxb5 {[%clk 0:02:41]} 20. Rxa5 {[%clk 0:02:15]}  gxf4 {[%clk 0:02:41]} 21. gxf4 {[%clk 0:01:41]}  Kh8 {[%clk 0:02:40]} 22. Ra7 {[%clk 0:01:41]}  Rf7 {[%clk 0:02:35]} 23. Kh1 {[%clk 0:01:40]}  Rg8 {[%clk 0:02:34]} 24. Rg1 {[%clk 0:01:40]}  Rfg7 {[%clk 0:02:29]} 25. Raa1 {[%clk 0:01:04]}  Rxg2 {[%clk 0:01:47]} 26. Rxg2 {[%clk 0:01:05]}  Bc6 {[%clk 0:01:47]} 27. Rg1 {[%clk 0:01:06]}  Qg7 {[%clk 0:01:36]} 28. Qd2 {[%clk 0:00:27]}  Be4 {[%clk 0:01:27]} 29. Qf2 {[%clk 0:00:16]}  Bxg2+ {[%clk 0:01:14]} 30. Rxg2 {[%clk 0:00:16]}  Qxg2+ {[%clk 0:01:15]} 31. Qxg2 {[%clk 0:00:17]}  Rxg2 {[%clk 0:01:15]} 32. Kxg2 {[%clk 0:00:18]}  b4 {[%clk 0:01:15]} 33. Kf2 {[%clk 0:00:18]}  c3 {[%clk 0:01:16]} 34. bxc3 {[%clk 0:00:18]}  b3 {[%clk 0:01:16]} 35. Ke2 {[%clk 0:00:14]}  b2 {[%clk 0:01:16]} 36. Kd2 {[%clk 0:00:15]}  b1=Q {[%clk 0:01:16]} 0-1


[Site "https://www.chess.com"]

[Event "Titled Tuesday Blitz February 14 Early 2023"]
[White "Kubatko, Ivan"]
[Black "Zemlyanskii, Ivan"]
[WhiteFideId "24111473"]
[BlackFideId "24249971"]
[WhiteElo "2257"]
[BlackElo "2300"]
[Result "1/2-1/2"]
[Round "02"]
[TimeControl "180+2"]
[Date "2023.02.15"]
[WhiteClock "0:00:06"]
[BlackClock "0:00:12"]

1. e4 {[%clk 0:03:00]}  Nc6 {[%clk 0:02:58]} 2. Nc3 {[%clk 0:02:59]}  e5 {[%clk 0:02:51]} 3. Nf3 {[%clk 0:02:59]}  Nf6 {[%clk 0:02:51]} 4. g3 {[%clk 0:02:59]}  Bb4 {[%clk 0:02:45]} 5. d3 {[%clk 0:02:58]}  d5 {[%clk 0:02:43]} 6. exd5 {[%clk 0:02:59]}  Nxd5 {[%clk 0:02:43]} 7. Bd2 {[%clk 0:02:59]}  O-O {[%clk 0:02:39]} 8. Bg2 {[%clk 0:02:58]}  Bxc3 {[%clk 0:02:31]} 9. bxc3 {[%clk 0:02:58]}  f6 {[%clk 0:02:30]} 10. O-O {[%clk 0:02:57]}  Be6 {[%clk 0:02:30]} 11. Re1 {[%clk 0:02:33]}  Bg4 {[%clk 0:02:15]} 12. h3 {[%clk 0:02:30]}  Bh5 {[%clk 0:02:16]} 13. g4 {[%clk 0:02:25]}  Bf7 {[%clk 0:02:16]} 14. d4 {[%clk 0:02:23]}  exd4 {[%clk 0:02:06]} 15. Nxd4 {[%clk 0:02:07]}  Nxd4 {[%clk 0:01:58]} 16. cxd4 {[%clk 0:02:07]}  c6 {[%clk 0:01:57]} 17. c4 {[%clk 0:01:40]}  Nb6 {[%clk 0:01:56]} 18. Bb4 {[%clk 0:01:38]}  Re8 {[%clk 0:01:53]} 19. Rxe8+ {[%clk 0:01:18]}  Qxe8 {[%clk 0:01:54]} 20. d5 {[%clk 0:01:18]}  Nxc4 {[%clk 0:01:41]} 21. dxc6 {[%clk 0:01:16]}  bxc6 {[%clk 0:01:42]} 22. Qd4 {[%clk 0:01:04]}  a5 {[%clk 0:01:24]} 23. Bc3 {[%clk 0:00:57]}  Rd8 {[%clk 0:01:22]} 24. Qc5 {[%clk 0:00:57]}  Bd5 {[%clk 0:01:11]} 25. Re1 {[%clk 0:00:56]}  Ne5 {[%clk 0:00:57]} 26. f4 {[%clk 0:00:44]}  Bxg2 {[%clk 0:00:37]} 27. Kxg2 {[%clk 0:00:43]}  Rd5 {[%clk 0:00:37]} 28. Qe3 {[%clk 0:00:29]}  Qd8 {[%clk 0:00:16]} 29. fxe5 {[%clk 0:00:24]}  Rd3 {[%clk 0:00:16]} 30. Qc5 {[%clk 0:00:20]}  fxe5 {[%clk 0:00:05]} 31. Qxe5 {[%clk 0:00:16]}  Qd7 {[%clk 0:00:05]} 32. Rf1 {[%clk 0:00:09]}  h6 {[%clk 0:00:05]} 33. Rf3 {[%clk 0:00:07]}  Rd5 {[%clk 0:00:05]} 34. Qe4 {[%clk 0:00:06]}  Rd1 {[%clk 0:00:05]} 35. Re3 {[%clk 0:00:05]}  Rc1 {[%clk 0:00:03]} 36. Qe8+ {[%clk 0:00:05]}  Qxe8 {[%clk 0:00:03]} 37. Rxe8+ {[%clk 0:00:06]}  Kf7 {[%clk 0:00:04]} 38. Re3 {[%clk 0:00:05]}  Rc2+ {[%clk 0:00:04]} 39. Kf3 {[%clk 0:00:05]}  Rxa2 {[%clk 0:00:05]} 40. Bd4 {[%clk 0:00:03]}  Rh2 {[%clk 0:00:06]} 41. Kg3 {[%clk 0:00:03]}  Rd2 {[%clk 0:00:06]} 42. Bc3 {[%clk 0:00:03]}  Rd5 {[%clk 0:00:07]} 43. Kf3 {[%clk 0:00:02]}  a4 {[%clk 0:00:05]} 44. Ke4 {[%clk 0:00:02]}  Rc5 {[%clk 0:00:06]} 45. Bd4 {[%clk 0:00:03]}  Rc4 {[%clk 0:00:06]} 46. Kd3 {[%clk 0:00:02]}  Rb4 {[%clk 0:00:07]} 47. Rf3+ {[%clk 0:00:02]}  Ke6 {[%clk 0:00:04]} 48. Bxg7 {[%clk 0:00:02]}  Kd5 {[%clk 0:00:04]} 49. Rf5+ {[%clk 0:00:02]}  Ke6 {[%clk 0:00:05]} 50. Ra5 {[%clk 0:00:02]}  Rb3+ {[%clk 0:00:05]} 51. Ke4 {[%clk 0:00:02]}  Rxh3 {[%clk 0:00:06]} 52. Rxa4 {[%clk 0:00:02]}  Rh4 {[%clk 0:00:07]} 53. Kf3 {[%clk 0:00:02]}  h5 {[%clk 0:00:08]} 54. Re4+ {[%clk 0:00:02]}  Kf7 {[%clk 0:00:05]} 55. Bd4 {[%clk 0:00:02]}  Rxg4 {[%clk 0:00:06]} 56. Rxg4 {[%clk 0:00:02]}  hxg4+ {[%clk 0:00:07]} 57. Kxg4 {[%clk 0:00:03]}  Ke6 {[%clk 0:00:08]} 58. Kf3 {[%clk 0:00:04]}  Kd5 {[%clk 0:00:09]} 59. Ke3 {[%clk 0:00:04]}  Kc4 {[%clk 0:00:09]} 60. Bf6 {[%clk 0:00:05]}  Kb4 {[%clk 0:00:10]} 61. Bg7 {[%clk 0:00:05]}  c5 {[%clk 0:00:11]} 62. Bf8 {[%clk 0:00:06]}  Kb3 {[%clk 0:00:12]} 63. Bxc5 {[%clk 0:00:06]} 1/2-1/2


[Site "https://www.chess.com"]

[Event "Titled Tuesday Blitz February 14 Early 2023"]
[White "Carrasco Miranda, Andres"]
[Black "Goltsev, Dmitry"]
[WhiteFideId "3405990"]
[BlackFideId "24176710"]
[WhiteElo "2240"]
[BlackElo "2269"]
[Result "1-0"]
[Round "02"]
[TimeControl "180+2"]
[Date "2023.02.15"]
[WhiteClock "0:00:07"]
[BlackClock "0:01:59"]

1. d4 {[%clk 0:03:00]}  Nf6 {[%clk 0:03:00]} 2. c4 {[%clk 0:03:00]}  e6 {[%clk 0:03:00]} 3. g3 {[%clk 0:03:00]}  d5 {[%clk 0:03:01]} 4. Bg2 {[%clk 0:03:01]}  dxc4 {[%clk 0:03:02]} 5. Nf3 {[%clk 0:03:01]}  Nc6 {[%clk 0:03:02]} 6. O-O {[%clk 0:03:01]}  Be7 {[%clk 0:03:02]} 7. e3 {[%clk 0:02:51]}  O-O {[%clk 0:03:02]} 8. Nfd2 {[%clk 0:02:50]}  e5 {[%clk 0:03:01]} 9. Bxc6 {[%clk 0:02:48]}  bxc6 {[%clk 0:03:02]} 10. dxe5 {[%clk 0:02:48]}  Nd5 {[%clk 0:03:02]} 11. Nxc4 {[%clk 0:02:48]}  Bh3 {[%clk 0:03:03]} 12. Re1 {[%clk 0:02:46]}  Bb4 {[%clk 0:03:02]} 13. Bd2 {[%clk 0:02:44]}  Bc5 {[%clk 0:02:56]} 14. Nc3 {[%clk 0:02:41]}  Nb4 {[%clk 0:02:55]} 15. Qe2 {[%clk 0:00:13]}  Nc2 {[%clk 0:02:53]} 16. Rad1 {[%clk 0:00:12]}  Nxe1 {[%clk 0:02:53]} 17. Rxe1 {[%clk 0:00:13]}  Bb4 {[%clk 0:02:51]} 18. a3 {[%clk 0:00:07]}  Bxc3 {[%clk 0:02:51]} 19. Bxc3 {[%clk 0:00:08]}  c5 {[%clk 0:02:50]} 20. e4 {[%clk 0:00:08]}  Be6 {[%clk 0:02:49]} 21. Ne3 {[%clk 0:00:07]}  c4 {[%clk 0:02:41]} 22. Rd1 {[%clk 0:00:08]}  Qe7 {[%clk 0:02:40]} 23. Nf5 {[%clk 0:00:08]}  Bxf5 {[%clk 0:02:39]} 24. exf5 {[%clk 0:00:09]}  Rfd8 {[%clk 0:02:40]} 25. Re1 {[%clk 0:00:08]}  Rd3 {[%clk 0:02:39]} 26. f6 {[%clk 0:00:09]}  Qe6 {[%clk 0:02:38]} 27. fxg7 {[%clk 0:00:08]}  Rad8 {[%clk 0:02:39]} 28. Qe4 {[%clk 0:00:08]}  Kxg7 {[%clk 0:02:36]} 29. h4 {[%clk 0:00:07]}  Kh8 {[%clk 0:02:33]} 30. Qf4 {[%clk 0:00:06]}  Rg8 {[%clk 0:02:32]} 31. Kh2 {[%clk 0:00:06]}  c5 {[%clk 0:02:30]} 32. Re4 {[%clk 0:00:06]}  Rd1 {[%clk 0:02:27]} 33. Rxc4 {[%clk 0:00:06]}  Qc6 {[%clk 0:02:27]} 34. Re4 {[%clk 0:00:06]}  Qe6 {[%clk 0:02:26]} 35. Rc4 {[%clk 0:00:06]}  Rg6 {[%clk 0:02:24]} 36. Rxc5 {[%clk 0:00:06]}  Kg7 {[%clk 0:02:24]} 37. Rc7 {[%clk 0:00:06]}  Kg8 {[%clk 0:02:14]} 38. Qa4 {[%clk 0:00:04]}  a6 {[%clk 0:02:08]} 39. Qxd1 {[%clk 0:00:04]}  Qf5 {[%clk 0:02:04]} 40. Qd8+ {[%clk 0:00:05]}  Kg7 {[%clk 0:02:04]} 41. e6+ {[%clk 0:00:05]}  Kh6 {[%clk 0:02:05]} 42. Qf8+ {[%clk 0:00:05]}  Kh5 {[%clk 0:02:03]} 43. Rc5 {[%clk 0:00:06]}  fxe6 {[%clk 0:01:59]} 44. Rxf5+ {[%clk 0:00:05]}  exf5 {[%clk 0:02:00]} 45. Qxf5+ {[%clk 0:00:06]}  Kh6 {[%clk 0:02:01]} 46. Qf4+ {[%clk 0:00:06]}  Kh5 {[%clk 0:02:00]} 47. f3 {[%clk 0:00:07]}  a5 {[%clk 0:01:59]} 48. g4+ {[%clk 0:00:08]}  Kxh4 {[%clk 0:02:00]} 49. Bf6+ {[%clk 0:00:08]}  Rg5 {[%clk 0:01:59]} 50. Bxg5# {[%clk 0:00:07]} 1-0


[Site "https://www.chess.com"]

[Event "Titled Tuesday Blitz February 14 Early 2023"]
[White "Martins, Vinicius Tine"]
[Black "Liu, Xiangyi"]
[WhiteFideId "2112884"]
[BlackFideId "8605718"]
[WhiteElo "2254"]
[BlackElo "2377"]
[Result "1-0"]
[Round "02"]
[TimeControl "180+2"]
[Date "2023.02.15"]
[WhiteClock "0:01:32"]
[BlackClock "0:00:17"]

1. e4 {[%clk 0:02:59]}  e6 {[%clk 0:02:59]} 2. d4 {[%clk 0:02:56]}  d5 {[%clk 0:02:57]} 3. Nd2 {[%clk 0:02:57]}  c5 {[%clk 0:02:50]} 4. exd5 {[%clk 0:02:55]}  Qxd5 {[%clk 0:02:39]} 5. Ngf3 {[%clk 0:02:54]}  cxd4 {[%clk 0:02:38]} 6. Bc4 {[%clk 0:02:52]}  Qd7 {[%clk 0:02:39]} 7. O-O {[%clk 0:02:50]}  Nc6 {[%clk 0:02:38]} 8. Nb3 {[%clk 0:02:50]}  a6 {[%clk 0:02:36]} 9. Nbxd4 {[%clk 0:02:46]}  Nxd4 {[%clk 0:02:34]} 10. Qxd4 {[%clk 0:02:41]}  Nf6 {[%clk 0:02:30]} 11. a4 {[%clk 0:02:39]}  Qxd4 {[%clk 0:02:09]} 12. Nxd4 {[%clk 0:02:38]}  Bd7 {[%clk 0:02:10]} 13. Be3 {[%clk 0:02:33]}  Rc8 {[%clk 0:02:09]} 14. Be2 {[%clk 0:02:29]}  Nd5 {[%clk 0:02:08]} 15. Bd2 {[%clk 0:02:17]}  e5 {[%clk 0:02:08]} 16. Nf3 {[%clk 0:02:00]}  Rxc2 {[%clk 0:02:06]} 17. Bd3 {[%clk 0:01:59]}  Rxb2 {[%clk 0:02:06]} 18. Rfb1 {[%clk 0:01:58]}  Rxb1+ {[%clk 0:01:53]} 19. Rxb1 {[%clk 0:01:59]}  Bc8 {[%clk 0:00:52]} 20. Be4 {[%clk 0:01:54]}  Nf6 {[%clk 0:00:44]} 21. Bxb7 {[%clk 0:01:53]}  Bxb7 {[%clk 0:00:40]} 22. Rxb7 {[%clk 0:01:54]}  Bd6 {[%clk 0:00:41]} 23. Bb4 {[%clk 0:01:42]}  Bxb4 {[%clk 0:00:21]} 24. Rb8+ {[%clk 0:01:42]}  Ke7 {[%clk 0:00:22]} 25. Rxh8 {[%clk 0:01:42]}  e4 {[%clk 0:00:23]} 26. Nd4 {[%clk 0:01:41]}  Bc3 {[%clk 0:00:17]} 27. Nf5+ {[%clk 0:01:35]}  Kd7 {[%clk 0:00:17]} 28. Nxg7 {[%clk 0:01:32]} 1-0


[Site "https://www.chess.com"]

[Event "Titled Tuesday Blitz February 14 Early 2023"]
[White "Vaibhav Jayant Raut"]
[Black "Kanyamarala, Trisha"]
[WhiteFideId "5089034"]
[BlackFideId "45004722"]
[WhiteElo "2237"]
[BlackElo "2278"]
[Result "1-0"]
[Round "02"]
[TimeControl "180+2"]
[Date "2023.02.15"]
[WhiteClock "0:00:20"]
[BlackClock "0:00:02"]

1. e4 {[%clk 0:02:55]}  c5 {[%clk 0:02:59]} 2. b3 {[%clk 0:02:52]}  Nf6 {[%clk 0:02:53]} 3. e5 {[%clk 0:02:51]}  Nd5 {[%clk 0:02:52]} 4. Nf3 {[%clk 0:02:51]}  Nc6 {[%clk 0:02:52]} 5. Bb2 {[%clk 0:02:52]}  d6 {[%clk 0:02:52]} 6. exd6 {[%clk 0:02:52]}  exd6 {[%clk 0:02:52]} 7. Bb5 {[%clk 0:02:46]}  Qe7+ {[%clk 0:02:50]} 8. Be2 {[%clk 0:02:45]}  Nf4 {[%clk 0:02:48]} 9. Kf1 {[%clk 0:02:34]}  Be6 {[%clk 0:02:36]} 10. Nc3 {[%clk 0:02:28]}  Qd7 {[%clk 0:02:26]} 11. d3 {[%clk 0:02:04]}  Bh3 {[%clk 0:02:01]} 12. Rg1 {[%clk 0:02:04]}  Bxg2+ {[%clk 0:01:07]} 13. Rxg2 {[%clk 0:01:59]}  Qh3 {[%clk 0:01:06]} 14. Ne1 {[%clk 0:01:42]}  Nxg2 {[%clk 0:01:05]} 15. Nxg2 {[%clk 0:01:43]}  Qxh2 {[%clk 0:01:06]} 16. Bf3 {[%clk 0:01:33]}  Qh1+ {[%clk 0:00:57]} 17. Ke2 {[%clk 0:01:29]}  Nd4+ {[%clk 0:00:57]} 18. Kd2 {[%clk 0:01:29]}  Qh3 {[%clk 0:00:27]} 19. Bxb7 {[%clk 0:01:19]}  Rb8 {[%clk 0:00:23]} 20. Bd5 {[%clk 0:01:10]}  Be7 {[%clk 0:00:19]} 21. Qh1 {[%clk 0:01:03]}  Qf5 {[%clk 0:00:14]} 22. Qe1 {[%clk 0:00:52]}  O-O {[%clk 0:00:09]} 23. Be4 {[%clk 0:00:48]}  Bg5+ {[%clk 0:00:07]} 24. Ne3 {[%clk 0:00:49]}  Qf6 {[%clk 0:00:07]} 25. Nd5 {[%clk 0:00:47]}  Nf3+ {[%clk 0:00:07]} 26. Bxf3 {[%clk 0:00:48]}  Qxf3 {[%clk 0:00:06]} 27. c4 {[%clk 0:00:41]}  Rfe8 {[%clk 0:00:06]} 28. Qg1 {[%clk 0:00:41]}  h6 {[%clk 0:00:06]} 29. Re1 {[%clk 0:00:39]}  Re6 {[%clk 0:00:06]} 30. Qh1 {[%clk 0:00:38]}  Qxf2+ {[%clk 0:00:05]} 31. Re2 {[%clk 0:00:38]}  Qh4 {[%clk 0:00:03]} 32. Qxh4 {[%clk 0:00:38]}  Bxh4 {[%clk 0:00:04]} 33. Nf5 {[%clk 0:00:37]}  Bg5+ {[%clk 0:00:04]} 34. Kd1 {[%clk 0:00:38]}  Rbe8 {[%clk 0:00:04]} 35. Nc3 {[%clk 0:00:29]}  Rxe2 {[%clk 0:00:04]} 36. Nxe2 {[%clk 0:00:30]}  Re6 {[%clk 0:00:03]} 37. d4 {[%clk 0:00:30]}  Rf6 {[%clk 0:00:02]} 38. Nfg3 {[%clk 0:00:27]}  Rf3 {[%clk 0:00:02]} 39. d5 {[%clk 0:00:25]}  Rd3+ {[%clk 0:00:02]} 40. Ke1 {[%clk 0:00:24]}  Rd2 {[%clk 0:00:02]} 41. Bc3 {[%clk 0:00:23]}  Rxa2 {[%clk 0:00:02]} 42. Ne4 {[%clk 0:00:24]}  Rc2 {[%clk 0:00:02]} 43. Nxd6 {[%clk 0:00:22]}  Ra2 {[%clk 0:00:02]} 44. Ne4 {[%clk 0:00:22]}  Be3 {[%clk 0:00:02]} 45. d6 {[%clk 0:00:20]}  Ra3 {[%clk 0:00:02]} 46. d7 {[%clk 0:00:20]} 1-0


[Site "https://www.chess.com"]

[Event "Titled Tuesday Blitz February 14 Early 2023"]
[White "Klabis, Rokas"]
[Black "Avazkhonov, Alikhon"]
[WhiteFideId "12805246"]
[BlackFideId "14208504"]
[WhiteElo "2415"]
[BlackElo "1538"]
[Result "1-0"]
[Round "02"]
[TimeControl "180+2"]
[Date "2023.02.15"]
[WhiteClock "0:01:15"]
[BlackClock "0:00:02"]

1. e4 {[%clk 0:02:40]}  c5 {[%clk 0:02:55]} 2. Nf3 {[%clk 0:02:38]}  g6 {[%clk 0:02:55]} 3. d4 {[%clk 0:02:37]}  cxd4 {[%clk 0:02:56]} 4. Nxd4 {[%clk 0:02:37]}  Nc6 {[%clk 0:02:56]} 5. c4 {[%clk 0:02:36]}  Bg7 {[%clk 0:02:56]} 6. Be3 {[%clk 0:02:36]}  Nf6 {[%clk 0:02:57]} 7. Nc3 {[%clk 0:02:36]}  O-O {[%clk 0:02:56]} 8. f3 {[%clk 0:02:36]}  d6 {[%clk 0:02:56]} 9. Be2 {[%clk 0:02:36]}  Bd7 {[%clk 0:02:57]} 10. O-O {[%clk 0:02:36]}  a5 {[%clk 0:02:56]} 11. Rc1 {[%clk 0:02:33]}  Rc8 {[%clk 0:02:00]} 12. b3 {[%clk 0:02:25]}  Ne5 {[%clk 0:00:53]} 13. h3 {[%clk 0:02:20]}  Qc7 {[%clk 0:00:54]} 14. Qd2 {[%clk 0:02:16]}  Qb8 {[%clk 0:00:24]} 15. f4 {[%clk 0:02:10]}  Nc6 {[%clk 0:00:20]} 16. Bf3 {[%clk 0:02:07]}  Rfd8 {[%clk 0:00:19]} 17. Nd5 {[%clk 0:02:04]}  Nxd5 {[%clk 0:00:18]} 18. exd5 {[%clk 0:02:05]}  Nxd4 {[%clk 0:00:19]} 19. Bxd4 {[%clk 0:02:05]}  Bxd4+ {[%clk 0:00:17]} 20. Qxd4 {[%clk 0:02:06]}  b5 {[%clk 0:00:17]} 21. Rfe1 {[%clk 0:01:59]}  Re8 {[%clk 0:00:13]} 22. Bg4 {[%clk 0:01:42]}  Bxg4 {[%clk 0:00:13]} 23. hxg4 {[%clk 0:01:43]}  bxc4 {[%clk 0:00:13]} 24. bxc4 {[%clk 0:01:43]}  Qb4 {[%clk 0:00:12]} 25. Kh2 {[%clk 0:01:40]}  Qa3 {[%clk 0:00:12]} 26. Rc2 {[%clk 0:01:38]}  Rc7 {[%clk 0:00:11]} 27. f5 {[%clk 0:01:37]}  Rec8 {[%clk 0:00:10]} 28. Re4 {[%clk 0:01:28]}  Qb4 {[%clk 0:00:07]} 29. f6 {[%clk 0:01:16]}  exf6 {[%clk 0:00:06]} 30. Qxf6 {[%clk 0:01:16]}  Rxc4 {[%clk 0:00:06]} 31. Rcxc4 {[%clk 0:01:16]}  Qxc4 {[%clk 0:00:02]} 32. Rxc4 {[%clk 0:01:15]}  Rxc4 {[%clk 0:00:03]} 33. Qd8+ {[%clk 0:01:16]}  Kg7 {[%clk 0:00:03]} 34. Qxd6 {[%clk 0:01:16]}  Rxg4 {[%clk 0:00:04]} 35. Qe5+ {[%clk 0:01:15]}  Kh6 {[%clk 0:00:04]} 36. Qe3+ {[%clk 0:01:15]}  g5 {[%clk 0:00:03]} 37. d6 {[%clk 0:01:15]}  Rh4+ {[%clk 0:00:02]} 38. Kg1 {[%clk 0:01:15]}  Rc4 {[%clk 0:00:02]} 39. d7 {[%clk 0:01:15]} 1-0


[Site "https://www.chess.com"]